[Event "44th Chess Olympiad Open 2022"]
[Site "Chennai"]
[Date "2022.08.05"]
[Round "7.16"]
[White "Gavrilescu, David"]
[Black "Cubas, Jose Fernando"]
[Result "1-0"]
[ECO "B51"]
[WhiteElo "2525"]
[BlackElo "2451"]
[Annotator "RC"]
[PlyCount "91"]
[EventDate "2022.07.29"]
[EventType "team-tourn"]
[EventCountry "IND"]
[SourceTitle "playchess.com"]
[Source "ChessBase"]
[SourceQuality "1"]
[WhiteTeam "Romania"]
[BlackTeam "Paraguay"]
[WhiteTeamCountry "ROU"]
[BlackTeamCountry "PAR"]
[TimeControl "40/5400+30:1800+30"]

1. e4 {[%emt 0:00:25]} c5 {[%emt 0:00:31]} 2. Nf3 {[%emt 0:00:31]} d6 {[%emt 0:00:58]} 3. Bb5+ {[%emt 0:00:54]} Nd7 {[%emt 0:01:15]} 4. d4 {[%emt 0:00:43]} cxd4 {[%emt 0:00:15]} 5. Qxd4 {[%emt 0:00:26]} a6 {[%emt 0:01:49]} 6. Be2 {[%emt 0:00:28]} Ngf6 {[%emt 0:01:29]} 7. O-O {[%emt 0:00:41]} g6 {[%emt 0:01:56]} 8. Nc3 {[%emt 0:00:25]} Bg7 {[%emt 0:00:10]} 9. Rd1 {[%emt 0:00:15]} O-O {[%emt 0:00:39]} 10. e5 {[%emt 0:00:33]} Nxe5 {[%emt 0:04:41]} 11. Nxe5 {[%emt 0:01:15]} Nd7 {[%emt 0:00:17]} 12. Nxf7 {[%emt 0:00:16]} Bxd4 {[%emt 0:00:27]} 13. Nxd8 {[%emt 0:00:06]} Bxf2+ {[%emt 0:00:08]} 14. Kh1 {[%emt 0:00:05]} Rxd8 {[%emt 0:00:26]} 15. Bc4+ {[%emt 0:00:11]} Kg7 {[%emt 0:02:56]} 16. Rf1 {[%emt 0:00:44]} Ne5 {[%emt 0:00:47]} 17. Rxf2 {[%emt 0:08:16]} Nxc4 {[%emt 0:00:26]} 18. Bg5 {[%emt 0:00:41]} Bf5 {[%emt 0:04:38]} 19. Bxe7 {[%emt 0:12:39]} Re8 {[%emt 0:07:47]} 20. Nd5 {[%emt 0:04:52]} Rac8 {[%emt 0:01:18]} 21. Bf6+ {[%emt 0:07:37]} Kf7 {[%emt 0:01:37]} 22. Bd4 {[%emt 0:03:42]} Re4 {[%emt 0:06:41]} 23. c3 {[%emt 0:05:42]} Rce8 {[%emt 0:00:47]} 24. Raf1 {[%emt 0:04:41]} R8e6 {[%emt 0:29:08]} 25. h3 {[%emt 0:03:10]} h5 {[%emt 0:01:23]} 26. Nf4 {[%emt 0:01:21]} Ne3 {[%emt 0:05:44]} 27. Nxe6 {[%emt 0:01:19]} Kxe6 {[%emt 0:02:30]} 28. Re1 {[%emt 0:00:21]} Nc4 {[%emt 0:00:26]} 29. Rxe4+ {[%emt 0:00:37]} Bxe4 {[%emt 0:00:01]} 30. Kh2 {[%emt 0:02:15]} Ne5 {[%emt 0:02:52]} 31. Bxe5 {[%emt 0:00:26]} dxe5 {[%emt 0:00:16]} 32. Kg3 {[%emt 0:00:13]} Bd5 {[%emt 0:00:01]} 33. b3 {[%emt 0:00:25]} b5 {[%emt 0:00:02]} 34. Rf8 {[%emt 0:00:22]} g5 {[%emt 0:00:11]} 35. Rh8 {[%emt 0:01:02]} h4+ {[%emt 0:00:15]} 36. Kg4 {[%emt 0:00:13]} Bxg2 {[%emt 0:00:07]} 37. Kxg5 {[%emt 0:00:03]} Bxh3 {[%emt 0:00:08]} 38. Rxh4 {[%emt 0:00:04]} Bf1 {[%emt 0:00:04]} 39. Rh6+ {[%emt 0:00:07]} Kd5 {[%emt 0:00:01]} 40. Rxa6 {[%emt 0:00:08]} Ke4 {[%emt 0:00:11]} 41. Rd6 {[%emt 0:32:28]} Ke3 {[%emt 0:30:34]} 42. a4 {[%emt 0:00:09]} bxa4 {[%emt 0:00:10]} 43. bxa4 {[%emt 0:00:01]} e4 {[%emt 0:00:22]} 44. a5 {[%emt 0:00:03]} Ke2 {[%emt 0:02:57]} 45. Kf4 {[%emt 0:00:10]} Bg2 {[%emt 0:00:11]} 46. a6 {[%emt 0:00:09]} 1-0

[Event "44th Chess Olympiad Open 2022"]
[Site "Chennai"]
[Date "2022.08.05"]
[Round "7.16"]
[White "Zacarias, M Ruben D"]
[Black "Jianu, Vlad-Cristian"]
[Result "0-1"]
[ECO "B12"]
[WhiteElo "2175"]
[BlackElo "2511"]
[Annotator "RC"]
[PlyCount "98"]
[EventDate "2022.07.29"]
[EventType "team-tourn"]
[EventCountry "IND"]
[SourceTitle "playchess.com"]
[Source "ChessBase"]
[SourceQuality "1"]
[WhiteTeam "Paraguay"]
[BlackTeam "Romania"]
[WhiteTeamCountry "PAR"]
[BlackTeamCountry "ROU"]
[TimeControl "40/5400+30:1800+30"]

1. e4 {[%emt 0:00:03]} c6 {[%emt 0:00:07]} 2. d4 {[%emt 0:00:38]} d5 {[%emt 0:00:05]} 3. e5 {[%emt 0:04:47]} Bf5 {[%emt 0:00:19]} 4. h4 {[%emt 0:00:22]} h5 {[%emt 0:00:08]} 5. Bd3 {[%emt 0:00:04]} Bxd3 {[%emt 0:00:12]} 6. Qxd3 {[%emt 0:00:03]} Qa5+ {[%emt 0:00:11]} 7. Nd2 {[%emt 0:00:15]} e6 {[%emt 0:00:31]} 8. Ngf3 {[%emt 0:00:09]} Nh6 {[%emt 0:00:14]} 9. O-O {[%emt 0:00:16]} Nf5 {[%emt 0:00:16]} 10. Nb3 {[%emt 0:00:31]} Qb5 {[%emt 0:00:14]} 11. Qd1 {[%emt 0:00:08]} c5 {[%emt 0:00:26]} 12. a4 {[%emt 0:01:10]} Qb6 {[%emt 0:00:06]} 13. dxc5 {[%emt 0:00:05]} Bxc5 {[%emt 0:00:05]} 14. Nxc5 {[%emt 0:00:14]} Qxc5 {[%emt 0:00:06]} 15. Bg5 {[%emt 0:00:05]} Nc6 {[%emt 0:00:20]} 16. c3 {[%emt 0:00:53]} Rc8 {[%emt 0:00:38]} 17. Re1 {[%emt 0:00:54]} Qb6 {[%emt 0:01:04]} 18. b3 {[%emt 0:20:25]} Nce7 {[%emt 0:00:30]} 19. Rc1 {[%emt 0:04:20]} a6 {[%emt 0:00:21]} 20. Nd2 {[%emt 0:01:41]} Rc6 {[%emt 0:24:06]} 21. c4 {[%emt 0:02:29]} Qd4 {[%emt 0:04:41]} 22. cxd5 {[%emt 0:28:41]} Qxd5 {[%emt 0:07:16]} 23. Ne4 {[%emt 0:10:20]} Qxd1 {[%emt 0:23:02]} 24. Rexd1 {[%emt 0:00:22]} Rxc1 {[%emt 0:01:21]} 25. Rxc1 {[%emt 0:04:13]} Nc6 {[%emt 0:00:15]} 26. Nc5 {[%emt 0:00:34]} O-O {[%emt 0:03:45]} 27. Bf4 {[%emt 0:08:31]} Ncd4 {[%emt 0:05:24]} 28. Kf1 {[%emt 0:00:31]} Nxh4 {[%emt 0:03:08]} 29. Rc4 {[%emt 0:02:24]} Nhf5 {[%emt 0:02:25]} 30. Nxb7 {[%emt 0:04:43]} Nxb3 {[%emt 0:00:59]} 31. Rc7 {[%emt 0:01:26]} Nbd4 {[%emt 0:03:55]} 32. Nc5 {[%emt 0:01:12]} Rb8 {[%emt 0:00:29]} 33. g3 {[%emt 0:02:49]} Rb1+ {[%emt 0:13:14]} 34. Kg2 {[%emt 0:00:03]} Ne2 {[%emt 0:00:08]} 35. Bg5 {[%emt 0:01:06]} Rg1+ {[%emt 0:02:25]} 36. Kf3 {[%emt 0:00:30]} Nexg3 {[%emt 0:00:54]} 37. Rc8+ {[%emt 0:00:40]} Kh7 {[%emt 0:00:05]} 38. Nd7 {[%emt 0:00:03]} Nd4+ {[%emt 0:00:29]} 39. Kf4 {[%emt 0:01:22]} Nge2+ {[%emt 0:00:00]} 40. Ke4 {[%emt 0:00:16]} Rxg5 {[%emt 0:00:00]} 41. Nf8+ {[%emt 0:31:04]} Kh6 {[%emt 0:28:21]} 42. Nd7 {[%emt 0:00:18]} Rg4+ {[%emt 0:00:48]} 43. Ke3 {[%emt 0:00:05]} Ng1 {[%emt 0:04:28]} 44. f4 {[%emt 0:00:39]} Nf5+ {[%emt 0:00:22]} 45. Ke4 {[%emt 0:00:30]} g5 {[%emt 0:00:10]} 46. Nf6 {[%emt 0:00:00]} Rxf4+ {[%emt 0:00:00]} 47. Kd3 {[%emt 0:00:00]} Ne7 {[%emt 0:00:00]} 48. Rh8+ {[%emt 0:00:00]} Kg6 {[%emt 0:00:00]} 49. Rxh5 {[%emt 0:00:00]} Nf3 {[%emt 0:00:00]} 0-1

[Event "44th Chess Olympiad Open 2022"]
[Site "Chennai"]
[Date "2022.08.05"]
[Round "7.17"]
[White "Yilmaz, Mustafa"]
[Black "Hoffman, Alejandro"]
[Result "1-0"]
[ECO "D36"]
[WhiteElo "2634"]
[BlackElo "2390"]
[Annotator "ChessBase"]
[PlyCount "65"]
[EventDate "2022.07.29"]
[EventType "team-tourn"]
[EventCountry "IND"]
[SourceTitle "playchess.com"]
[Source "ChessBase"]
[SourceQuality "1"]
[WhiteTeam "Turkey"]
[BlackTeam "Uruguay"]
[WhiteTeamCountry "TUR"]
[BlackTeamCountry "URU"]
[TimeControl "40/5400+30:1800+30"]

1. d4 {[%emt 0:00:03]} Nf6 {[%emt 0:00:25]} 2. c4 {[%emt 0:00:05]} e6 {[%emt 0:00:20]} 3. Nf3 {[%emt 0:00:04]} d5 {[%emt 0:00:28]} 4. Nc3 {[%emt 0:00:05]} Nbd7 {[%emt 0:00:42]} 5. cxd5 {[%emt 0:00:43]} exd5 {[%emt 0:00:10]} 6. Bg5 {[%emt 0:00:04]} Be7 {[%emt 0:01:58]} 7. e3 {[%emt 0:00:39]} O-O {[%emt 0:00:43]} 8. Bd3 {[%emt 0:01:50]} c6 {[%emt 0:00:38]} 9. Qc2 {[%emt 0:02:29]} Re8 {[%emt 0:00:40]} 10. Bf4 {[%emt 0:01:27]} a6 {[%emt 0:04:59]} 11. h3 {[%emt 0:06:24]} c5 {[%emt 0:08:25]} 12. dxc5 {[%emt 0:00:53]} Nxc5 {[%emt 0:00:09]} 13. Rd1 {[%emt 0:02:05]} Be6 {[%emt 0:02:07]} 14. Ng5 {[%emt 0:14:17]} h6 {[%emt 0:16:43]} 15. Nxe6 {[%emt 0:01:02]} Nxe6 {[%emt 0:00:07]} 16. Be5 {[%emt 0:02:35]} Nd7 {[%emt 0:10:09]} 17. Bh7+ {[%emt 0:09:28]} Kh8 {[%emt 0:00:27]} 18. Rxd5 {[%emt 0:00:51]} Qc8 {[%emt 0:02:17]} 19. Be4 {[%emt 0:12:22]} Nxe5 {[%emt 0:11:18]} 20. Rxe5 {[%emt 0:00:02]} Bf6 {[%emt 0:00:09]} 21. Rd5 {[%emt 0:02:22]} Qc4 {[%emt 0:01:21]} 22. Rd2 {[%emt 0:02:37]} Rad8 {[%emt 0:06:09]} 23. Bd3 {[%emt 0:04:14]} Qh4 {[%emt 0:09:18]} 24. O-O {[%emt 0:02:06]} Ng5 {[%emt 0:00:55]} 25. Rfd1 {[%emt 0:02:32]} Rc8 {[%emt 0:02:22]} 26. Qb3 {[%emt 0:11:31]} Rc5 {[%emt 0:04:41]} 27. Kf1 {[%emt 0:06:00]} Nxh3 {[%emt 0:10:42]} 28. Qxf7 {[%emt 0:00:30]} Rce5 {[%emt 0:00:22]} 29. Qc4 {[%emt 0:05:56]} Nf4 {[%emt 0:04:14]} 30. Qxf4 {[%emt 0:01:20]} Qh1+ {[%emt 0:00:08]} 31. Ke2 {[%emt 0:00:01]} Qxg2 {[%emt 0:00:45]} 32. Be4 {[%emt 0:01:59]} Qh3 {[%emt 0:01:23]} 33. Rd6 {[%emt 0:03:21]} 1-0

[Event "44th Chess Olympiad Open 2022"]
[Site "Chennai"]
[Date "2022.08.05"]
[Round "7.17"]
[White "Ali Marandi, Cemil Can"]
[Black "Vazquez Facundo"]
[Result "1-0"]
[ECO "B40"]
[WhiteElo "2561"]
[BlackElo "2336"]
[Annotator "RC"]
[PlyCount "97"]
[EventDate "2022.07.29"]
[EventType "team-tourn"]
[EventCountry "IND"]
[SourceTitle "playchess.com"]
[Source "ChessBase"]
[SourceQuality "1"]
[WhiteTeam "Turkey"]
[BlackTeam "Uruguay"]
[WhiteTeamCountry "TUR"]
[BlackTeamCountry "URU"]
[TimeControl "40/5400+30:1800+30"]

1. e4 {[%emt 0:00:03]} c5 {[%emt 0:00:12]} 2. Nf3 {[%emt 0:00:07]} e6 {[%emt 0:00:09]} 3. b3 {[%emt 0:00:04]} a6 {[%emt 0:03:31]} 4. Bb2 {[%emt 0:00:17]} Nc6 {[%emt 0:00:08]} 5. c4 {[%emt 0:00:31]} d6 {[%emt 0:02:46]} 6. d4 {[%emt 0:00:50]} cxd4 {[%emt 0:03:12]} 7. Nxd4 {[%emt 0:00:08]} Bd7 {[%emt 0:00:39]} 8. Bd3 {[%emt 0:03:08]} Nf6 {[%emt 0:03:41]} 9. O-O {[%emt 0:03:06]} Be7 {[%emt 0:02:01]} 10. Nd2 {[%emt 0:00:23]} Nxd4 {[%emt 0:06:01]} 11. Bxd4 {[%emt 0:00:04]} e5 {[%emt 0:02:12]} 12. Bb2 {[%emt 0:00:35]} b5 {[%emt 0:00:20]} 13. Qe2 {[%emt 0:02:31]} Qb6 {[%emt 0:02:55]} 14. Kh1 {[%emt 0:01:39]} Rc8 {[%emt 0:06:21]} 15. f4 {[%emt 0:08:13]} Ng4 {[%emt 0:08:32]} 16. h3 {[%emt 0:03:11]} h5 {[%emt 0:01:55]} 17. Nf3 {[%emt 0:02:35]} Bf6 {[%emt 0:06:07]} 18. fxe5 {[%emt 0:03:46]} Nxe5 {[%emt 0:02:34]} 19. Nxe5 {[%emt 0:05:09]} Bxe5 {[%emt 0:05:08]} 20. Bxe5 {[%emt 0:01:56]} dxe5 {[%emt 0:00:09]} 21. cxb5 {[%emt 0:01:51]} axb5 {[%emt 0:03:31]} 22. a4 {[%emt 0:10:16]} bxa4 {[%emt 0:02:35]} 23. bxa4 {[%emt 0:00:07]} Ra8 {[%emt 0:13:34]} 24. Bc4 {[%emt 0:02:20]} O-O {[%emt 0:05:57]} 25. Qxh5 {[%emt 0:02:56]} Be6 {[%emt 0:00:30]} 26. a5 {[%emt 0:07:02]} Qc6 {[%emt 0:03:07]} 27. Be2 {[%emt 0:03:12]} Bc4 {[%emt 0:03:49]} 28. Bxc4 {[%emt 0:03:38]} Qxc4 {[%emt 0:00:02]} 29. Qxe5 {[%emt 0:00:20]} Rae8 {[%emt 0:00:14]} 30. Qg3 {[%emt 0:02:35]} Ra8 {[%emt 0:03:26]} 31. Qf3 {[%emt 0:03:13]} Ra6 {[%emt 0:00:34]} 32. e5 {[%emt 0:04:32]} Qb5 {[%emt 0:03:12]} 33. Qf4 {[%emt 0:02:43]} Re6 {[%emt 0:02:52]} 34. Rfb1 {[%emt 0:02:42]} Qe2 {[%emt 0:00:42]} 35. Re1 {[%emt 0:06:06]} Qb5 {[%emt 0:00:52]} 36. Re3 {[%emt 0:04:21]} Ra8 {[%emt 0:02:24]} 37. Qd4 {[%emt 0:02:57]} Rea6 {[%emt 0:00:49]} 38. e6 {[%emt 0:02:25]} Rxe6 {[%emt 0:01:17]} 39. Rxe6 {[%emt 0:00:15]} fxe6 {[%emt 0:00:02]} 40. Qa4 {[%emt 0:03:04]} Qa6 {[%emt 0:00:42]} 41. Qd7 {[%emt 0:32:58]} Qe2 {[%emt 0:07:24]} 42. a6 {[%emt 0:00:00]} Rf8 {[%emt 0:01:57]} 43. Qd1 {[%emt 0:00:00]} Qf2 {[%emt 0:16:48]} 44. a7 {[%emt 0:00:00]} Ra8 {[%emt 0:00:06]} 45. Qb3 {[%emt 0:00:00]} Qd4 {[%emt 0:02:54]} 46. Qb8+ {[%emt 0:00:00]} Kh7 {[%emt 0:00:09]} 47. Ra5 {[%emt 0:00:00]} Qe4 {[%emt 0:01:31]} 48. Rh5+ {[%emt 0:00:00]} Kg6 {[%emt 0:00:04]} 49. Rh8 {[%emt 0:00:00]} 1-0

[Event "44th Chess Olympiad Open 2022"]
[Site "Chennai"]
[Date "2022.08.05"]
[Round "7.17"]
[White "Diaz Hollemaert, Nahuel"]
[Black "Sanal, Vahap"]
[Result "0-1"]
[ECO "A04"]
[WhiteElo "2425"]
[BlackElo "2574"]
[Annotator "RC"]
[PlyCount "130"]
[EventDate "2022.07.29"]
[EventType "team-tourn"]
[EventCountry "IND"]
[SourceTitle "playchess.com"]
[Source "ChessBase"]
[SourceQuality "1"]
[WhiteTeam "Uruguay"]
[BlackTeam "Turkey"]
[WhiteTeamCountry "URU"]
[BlackTeamCountry "TUR"]
[TimeControl "40/5400+30:1800+30"]

1. Nf3 {[%emt 0:00:04]} c5 {[%emt 0:00:28]} 2. g3 {[%emt 0:02:00]} Nc6 {[%emt 0:00:18]} 3. Bg2 {[%emt 0:00:03]} g6 {[%emt 0:01:04]} 4. O-O {[%emt 0:03:29]} Bg7 {[%emt 0:00:08]} 5. c3 {[%emt 0:00:50]} e5 {[%emt 0:02:34]} 6. e4 {[%emt 0:06:23]} Nge7 {[%emt 0:00:12]} 7. d3 {[%emt 0:02:24]} O-O {[%emt 0:00:25]} 8. a3 {[%emt 0:01:29]} a5 {[%emt 0:05:39]} 9. a4 {[%emt 0:05:13]} d6 {[%emt 0:05:43]} 10. Na3 {[%emt 0:01:07]} h6 {[%emt 0:01:53]} 11. Nb5 {[%emt 0:14:49]} f5 {[%emt 0:13:23]} 12. Nd2 {[%emt 0:14:48]} Be6 {[%emt 0:06:30]} 13. Nc4 {[%emt 0:15:47]} Nc8 {[%emt 0:04:17]} 14. exf5 {[%emt 0:08:21]} gxf5 {[%emt 0:00:49]} 15. f4 {[%emt 0:04:35]} e4 {[%emt 0:03:26]} 16. Ne3 {[%emt 0:00:19]} exd3 {[%emt 0:14:04]} 17. Qxd3 {[%emt 0:00:03]} Rf7 {[%emt 0:00:19]} 18. Nd5 {[%emt 0:05:57]} Nb6 {[%emt 0:11:48]} 19. Re1 {[%emt 0:03:55]} Bxd5 {[%emt 0:02:38]} 20. Bxd5 {[%emt 0:00:03]} Nxd5 {[%emt 0:00:25]} 21. Qxd5 {[%emt 0:00:01]} Bf8 {[%emt 0:00:28]} 22. Re6 {[%emt 0:02:50]} Qd7 {[%emt 0:07:30]} 23. Bd2 {[%emt 0:02:20]} Ra6 {[%emt 0:04:18]} 24. Rae1 {[%emt 0:02:08]} Ne7 {[%emt 0:00:32]} 25. Qf3 {[%emt 0:01:41]} d5 {[%emt 0:00:27]} 26. Qe2 {[%emt 0:00:36]} Rc6 {[%emt 0:00:53]} 27. c4 {[%emt 0:01:59]} d4 {[%emt 0:06:27]} 28. Qe5 {[%emt 0:00:06]} Rxe6 {[%emt 0:01:44]} 29. Qxe6 {[%emt 0:00:01]} Nc6 {[%emt 0:00:49]} 30. Qd5 {[%emt 0:01:33]} Qxd5 {[%emt 0:03:16]} 31. cxd5 {[%emt 0:00:01]} Nb4 {[%emt 0:00:10]} 32. Bxb4 {[%emt 0:00:47]} axb4 {[%emt 0:00:03]} 33. b3 {[%emt 0:00:27]} Rd7 {[%emt 0:01:21]} 34. Re5 {[%emt 0:00:14]} Bg7 {[%emt 0:01:33]} 35. Re8+ {[%emt 0:00:51]} Kf7 {[%emt 0:01:00]} 36. Rc8 {[%emt 0:00:04]} d3 {[%emt 0:00:30]} 37. Kf2 {[%emt 0:00:22]} Rxd5 {[%emt 0:00:38]} 38. Ke1 {[%emt 0:00:15]} Bc3+ {[%emt 0:00:44]} 39. Kd1 {[%emt 0:00:01]} b6 {[%emt 0:00:05]} 40. Rc7+ {[%emt 0:01:25]} Kf8 {[%emt 0:00:26]} 41. Rc6 {[%emt 0:06:02]} Ke7 {[%emt 0:06:22]} 42. Rxb6 {[%emt 0:03:24]} d2 {[%emt 0:00:09]} 43. Rb7+ {[%emt 0:11:34]} Kd8 {[%emt 0:08:41]} 44. Rb8+ {[%emt 0:01:28]} Kd7 {[%emt 0:00:09]} 45. Rb7+ {[%emt 0:00:32]} Kc6 {[%emt 0:01:33]} 46. Re7 {[%emt 0:00:29]} Rd3 {[%emt 0:04:45]} 47. Na7+ {[%emt 0:03:41]} Kd5 {[%emt 0:00:11]} 48. Rd7+ {[%emt 0:00:19]} Ke4 {[%emt 0:00:06]} 49. Re7+ {[%emt 0:00:26]} Kf3 {[%emt 0:00:09]} 50. Nc6 {[%emt 0:00:50]} c4 {[%emt 0:10:07]} 51. bxc4 {[%emt 0:03:45]} Kg2 {[%emt 0:00:02]} 52. Re2+ {[%emt 0:01:34]} Kh3 {[%emt 0:00:02]} 53. Na5 {[%emt 0:01:26]} Rf3 {[%emt 0:00:37]} 54. Kc2 {[%emt 0:00:40]} Rf1 {[%emt 0:00:25]} 55. Rxd2 {[%emt 0:00:05]} Bxd2 {[%emt 0:00:05]} 56. Kxd2 {[%emt 0:00:02]} Rf2+ {[%emt 0:01:29]} 57. Kd3 {[%emt 0:02:04]} Rf3+ {[%emt 0:00:39]} 58. Kc2 {[%emt 0:00:17]} Rc3+ {[%emt 0:00:33]} 59. Kb2 {[%emt 0:00:06]} Kxh2 {[%emt 0:00:08]} 60. Nc6 {[%emt 0:00:46]} Rxc4 {[%emt 0:00:08]} 61. Ne5 {[%emt 0:00:05]} Rc7 {[%emt 0:00:37]} 62. g4 {[%emt 0:00:25]} Kg3 {[%emt 0:00:50]} 63. gxf5 {[%emt 0:00:58]} Kxf4 {[%emt 0:00:11]} 64. Nd3+ {[%emt 0:00:13]} Kxf5 {[%emt 0:00:05]} 65. Nxb4 {[%emt 0:00:05]} h5 {[%emt 0:00:21]} 0-1

[Event "44th Chess Olympiad Open 2022"]
[Site "Chennai"]
[Date "2022.08.05"]
[Round "7.17"]
[White "Roselli Mailhe, Bernardo"]
[Black "Solak, Dragan"]
[Result "0-1"]
[ECO "D11"]
[WhiteElo "2413"]
[BlackElo "2594"]
[Annotator "ChessBase"]
[PlyCount "68"]
[EventDate "2022.07.29"]
[EventType "team-tourn"]
[EventCountry "IND"]
[SourceTitle "playchess.com"]
[Source "ChessBase"]
[SourceQuality "1"]
[WhiteTeam "Uruguay"]
[BlackTeam "Turkey"]
[WhiteTeamCountry "URU"]
[BlackTeamCountry "TUR"]
[TimeControl "40/5400+30:1800+30"]

1. d4 {[%emt 0:00:12]} d5 {[%emt 0:00:07]} 2. c4 {[%emt 0:00:06]} c6 {[%emt 0:00:05]} 3. Nf3 {[%emt 0:00:15]} Nf6 {[%emt 0:00:08]} 4. e3 {[%emt 0:00:05]} Bg4 {[%emt 0:01:37]} 5. Nc3 {[%emt 0:01:15]} e6 {[%emt 0:00:18]} 6. h3 {[%emt 0:01:41]} Bh5 {[%emt 0:01:28]} 7. g4 {[%emt 0:05:14]} Bg6 {[%emt 0:00:05]} 8. Ne5 {[%emt 0:00:10]} Nbd7 {[%emt 0:01:56]} 9. Nxg6 {[%emt 0:04:59]} hxg6 {[%emt 0:00:56]} 10. Bd2 {[%emt 0:01:53]} g5 {[%emt 0:37:28]} 11. Qb3 {[%emt 0:21:04]} Rb8 {[%emt 0:13:53]} 12. Bg2 {[%emt 0:04:51]} Nb6 {[%emt 0:02:55]} 13. cxd5 {[%emt 0:02:46]} cxd5 {[%emt 0:06:53]} 14. O-O-O {[%emt 0:02:43]} Be7 {[%emt 0:11:30]} 15. Kb1 {[%emt 0:03:15]} Nc4 {[%emt 0:00:33]} 16. Bc1 {[%emt 0:03:08]} b5 {[%emt 0:01:19]} 17. f4 {[%emt 0:17:35]} gxf4 {[%emt 0:01:58]} 18. exf4 {[%emt 0:00:53]} O-O {[%emt 0:08:20]} 19. g5 {[%emt 0:04:40]} Ne8 {[%emt 0:00:29]} 20. Ne2 {[%emt 0:02:32]} Ned6 {[%emt 0:00:58]} 21. h4 {[%emt 0:01:05]} b4 {[%emt 0:05:27]} 22. Ka1 {[%emt 0:09:27]} Na5 {[%emt 0:00:53]} 23. Qa4 {[%emt 0:05:34]} b3 {[%emt 0:00:53]} 24. Bd2 {[%emt 0:02:55]} Nac4 {[%emt 0:00:23]} 25. axb3 {[%emt 0:00:58]} Nxd2 {[%emt 0:00:21]} 26. Rxd2 {[%emt 0:00:05]} Rb5 {[%emt 0:00:40]} 27. Kb1 {[%emt 0:00:43]} Qb6 {[%emt 0:00:15]} 28. Rc1 {[%emt 0:01:26]} Rxb3 {[%emt 0:00:35]} 29. Rc6 {[%emt 0:01:14]} Qb8 {[%emt 0:00:11]} 30. Nc1 {[%emt 0:02:01]} Rb4 {[%emt 0:00:17]} 31. Qa2 {[%emt 0:00:22]} Nc4 {[%emt 0:02:30]} 32. Rf2 {[%emt 0:00:20]} Qb5 {[%emt 0:00:21]} 33. Rc7 {[%emt 0:00:55]} Rb8 {[%emt 0:00:35]} 34. Nd3 {[%emt 0:00:29]} Ra4 {[%emt 0:00:29]} 0-1

[Event "44th Chess Olympiad Open 2022"]
[Site "Chennai"]
[Date "2022.08.05"]
[Round "7.18"]
[White "Mchedlishvili, Mikheil"]
[Black "Macovei, Andrei"]
[Result "1/2-1/2"]
[ECO "D41"]
[WhiteElo "2593"]
[BlackElo "2478"]
[Annotator "RC"]
[PlyCount "71"]
[EventDate "2022.07.29"]
[EventType "team-tourn"]
[EventCountry "IND"]
[SourceTitle "playchess.com"]
[Source "ChessBase"]
[SourceQuality "1"]
[WhiteTeam "Georgia"]
[BlackTeam "Moldova"]
[WhiteTeamCountry "GEO"]
[BlackTeamCountry "MDA"]
[TimeControl "40/5400+30:1800+30"]

1. d4 {[%emt 0:00:06]} Nf6 {[%emt 0:00:42]} 2. c4 {[%emt 0:00:23]} e6 {[%emt 0:00:23]} 3. Nf3 {[%emt 0:00:22]} d5 {[%emt 0:00:15]} 4. Nc3 {[%emt 0:00:46]} c5 {[%emt 0:00:07]} 5. cxd5 {[%emt 0:01:52]} Nxd5 {[%emt 0:00:03]} 6. e4 {[%emt 0:01:40]} Nxc3 {[%emt 0:00:06]} 7. bxc3 {[%emt 0:00:09]} cxd4 {[%emt 0:00:02]} 8. cxd4 {[%emt 0:00:06]} Bb4+ {[%emt 0:00:02]} 9. Bd2 {[%emt 0:00:07]} Bxd2+ {[%emt 0:00:03]} 10. Qxd2 {[%emt 0:00:07]} O-O {[%emt 0:00:10]} 11. Bc4 {[%emt 0:01:26]} Nd7 {[%emt 0:00:07]} 12. O-O {[%emt 0:00:28]} b6 {[%emt 0:00:08]} 13. Rfe1 {[%emt 0:01:19]} Bb7 {[%emt 0:00:11]} 14. Rad1 {[%emt 0:00:50]} Rc8 {[%emt 0:00:10]} 15. Bb3 {[%emt 0:00:32]} Re8 {[%emt 0:00:08]} 16. h3 {[%emt 0:03:23]} Qf6 {[%emt 0:00:41]} 17. Re3 {[%emt 0:02:00]} Qf4 {[%emt 0:02:34]} 18. Qe2 {[%emt 0:08:57]} Nf6 {[%emt 0:05:40]} 19. g3 {[%emt 0:04:23]} Qc7 {[%emt 0:03:22]} 20. Ne5 {[%emt 0:01:58]} b5 {[%emt 0:25:41]} 21. Ng4 {[%emt 0:09:15]} Nxg4 {[%emt 0:08:30]} 22. hxg4 {[%emt 0:00:27]} Qb6 {[%emt 0:00:42]} 23. d5 {[%emt 0:07:05]} exd5 {[%emt 0:05:21]} 24. Bxd5 {[%emt 0:01:02]} Bxd5 {[%emt 0:06:09]} 25. Rxd5 {[%emt 0:00:27]} a6 {[%emt 0:05:27]} 26. g5 {[%emt 0:01:30]} h6 {[%emt 0:00:56]} 27. Kg2 {[%emt 0:03:50]} hxg5 {[%emt 0:03:47]} 28. Rxg5 {[%emt 0:00:12]} Rc5 {[%emt 0:00:08]} 29. Rg4 {[%emt 0:02:01]} Qe6 {[%emt 0:03:55]} 30. Rh4 {[%emt 0:01:22]} Re5 {[%emt 0:09:56]} 31. Qb2 {[%emt 0:08:56]} f5 {[%emt 0:03:08]} 32. exf5 {[%emt 0:11:20]} Qd5+ {[%emt 0:00:10]} 33. Rf3 {[%emt 0:04:21]} Rxf5 {[%emt 0:00:08]} 34. Qb3 {[%emt 0:00:27]} Qxb3 {[%emt 0:02:41]} 35. axb3 {[%emt 0:00:13]} Rxf3 {[%emt 0:01:35]} 36. Kxf3 {[%emt 0:00:08]} 1/2-1/2

[Event "44th Chess Olympiad Open 2022"]
[Site "Chennai"]
[Date "2022.08.05"]
[Round "7.18"]
[White "Gelashvili, Tamaz"]
[Black "Ceres, Dragos"]
[Result "0-1"]
[ECO "D05"]
[WhiteElo "2549"]
[BlackElo "2378"]
[Annotator "RC"]
[PlyCount "64"]
[EventDate "2022.07.29"]
[EventType "team-tourn"]
[EventCountry "IND"]
[SourceTitle "playchess.com"]
[Source "ChessBase"]
[SourceQuality "1"]
[WhiteTeam "Georgia"]
[BlackTeam "Moldova"]
[WhiteTeamCountry "GEO"]
[BlackTeamCountry "MDA"]
[TimeControl "40/5400+30:1800+30"]

1. Nf3 {[%emt 0:00:05]} d5 {[%emt 0:00:33]} 2. d4 {[%emt 0:00:15]} e6 {[%emt 0:00:36]} 3. e3 {[%emt 0:00:50]} Nf6 {[%emt 0:05:15]} 4. Bd3 {[%emt 0:00:08]} Bd6 {[%emt 0:00:28]} 5. O-O {[%emt 0:00:27]} O-O {[%emt 0:00:08]} 6. b3 {[%emt 0:00:02]} c5 {[%emt 0:02:04]} 7. Bb2 {[%emt 0:00:19]} Nc6 {[%emt 0:00:07]} 8. Nbd2 {[%emt 0:00:31]} b6 {[%emt 0:00:41]} 9. a3 {[%emt 0:00:56]} Bb7 {[%emt 0:00:08]} 10. c4 {[%emt 0:11:22]} cxd4 {[%emt 0:19:35]} 11. exd4 {[%emt 0:00:24]} Ne7 {[%emt 0:00:07]} 12. Qe2 {[%emt 0:02:49]} Rc8 {[%emt 0:01:04]} 13. Ne5 {[%emt 0:07:52]} Bb8 {[%emt 0:07:50]} 14. Rad1 {[%emt 0:11:12]} Nf5 {[%emt 0:01:50]} 15. Rfe1 {[%emt 0:21:28]} dxc4 {[%emt 0:09:52]} 16. Ndxc4 {[%emt 0:00:05]} Nd5 {[%emt 0:02:44]} 17. Qg4 {[%emt 0:00:12]} f6 {[%emt 0:06:02]} 18. Nf3 {[%emt 0:18:50]} Nf4 {[%emt 0:00:17]} 19. Bxf5 {[%emt 0:07:48]} exf5 {[%emt 0:00:08]} 20. Qxf5 {[%emt 0:00:03]} g6 {[%emt 0:00:07]} 21. Qb5 {[%emt 0:05:03]} Bxf3 {[%emt 0:00:08]} 22. gxf3 {[%emt 0:00:07]} a6 {[%emt 0:00:04]} 23. Qxa6 {[%emt 0:04:23]} Qd7 {[%emt 0:01:43]} 24. Bc1 {[%emt 0:06:33]} Qh3 {[%emt 0:00:08]} 25. Bxf4 {[%emt 0:00:03]} Bxf4 {[%emt 0:00:06]} 26. Rd2 {[%emt 0:00:08]} Qxh2+ {[%emt 0:02:41]} 27. Kf1 {[%emt 0:00:01]} Bxd2 {[%emt 0:00:22]} 28. Nxd2 {[%emt 0:00:04]} Qh1+ {[%emt 0:00:19]} 29. Ke2 {[%emt 0:00:06]} Rfe8+ {[%emt 0:00:08]} 30. Ne4 {[%emt 0:00:08]} Rxe4+ {[%emt 0:00:07]} 31. fxe4 {[%emt 0:00:08]} Qxe4+ {[%emt 0:00:05]} 32. Kd2 {[%emt 0:00:44]} Qc2+ {[%emt 0:00:29]} 0-1